bitfinex/quotes_SOLUSD_20230120
["timestamp","ask_amount","ask_price","bid_price","bid_amount"]
[1674244320882,50.25,23.231,23.201,10.0]
[1674244321303,33.25,23.231,23.201,10.0]
[1674244321511,32.29,23.231,23.203,10.0]
[1674244321737,32.29,23.231,23.204,17.96]
[1674244321951,10.0,23.23,23.205,10.0]
[1674244322158,10.0,23.228,23.206,17.0]
[1674244322782,10.0,23.228,23.207,10.0]
[1674244322991,0.96,23.227,23.208,20.0]
[1674244323212,10.0,23.225,23.192,10.0]
[1674244323426,32.3,23.224,23.197,20.0]
[1674244323745,4.20321,23.223,23.192,10.0]
[1674244323932,10.0,23.221,23.192,10.0]
[1674244324145,50.27,23.22,23.192,10.0]
[1674244324792,10.0,23.219,23.192,10.0]
[1674244324977,53.51321,23.218,23.191,10.0]
[1674244325193,54.47321,23.218,23.189,10.0]
[1674244325636,27.95897951,23.217,23.189,10.0]
[1674244325865,10.0,23.215,23.189,10.0]
[1674244326074,50.28,23.214,23.189,10.0]
[1674244326789,10.0,23.213,23.189,10.0]
[1674244326998,10.0,23.211,23.189,10.0]
[1674244327220,50.28,23.21,23.189,10.0]
[1674244327428,50.28,23.21,23.188,10.0]
[1674244327646,50.28,23.21,23.182,10.0]
[1674244327860,10.0,23.209,23.182,10.0]
[1674244328071,33.28,23.208,23.182,10.0]
[1674244328261,10.0,23.207,23.183,20.0]
[1674244328472,0.96,23.206,23.183,20.0]
[1674244328681,17.96,23.206,23.183,20.0]
[1674244329014,10.0,23.205,23.184,10.0]
[1674244329209,17.96,23.204,23.185,20.0]
[1674244329747,50.29,23.204,23.185,20.0]
[1674244329959,10.0,23.203,23.183,20.0]
[1674244330282,10.0,23.203,23.175,10.0]
[1674244330283,17.0,23.202,23.175,10.0]
[1674244330476,33.29,23.201,23.175,10.0]
[1674244330683,17.0,23.2,23.175,10.0]
[1674244330882,42.34,23.199,23.175,10.0]
[1674244331099,32.34,23.199,23.175,10.0]
[1674244331306,32.33,23.202,23.175,10.0]
[1674244331536,17.96,23.201,23.175,10.0]
[1674244331731,10.0,23.199,23.175,10.0]
[1674244331938,49.34,23.198,23.175,10.0]
[1674244332153,0.96,23.197,23.175,10.0]
[1674244332583,10.96,23.197,23.175,10.0]
[1674244332803,10.96,23.197,23.17,10.0]
[1674244332804,53.54321,23.196,23.17,10.0]
[1674244332989,0.96,23.195,23.17,10.0]
[1674244333203,32.34,23.194,23.17,9.5]
[1674244333411,0.96,23.193,23.17,9.5]
[1674244333623,32.34,23.194,23.171,20.0]
[1674244333837,0.96,23.195,23.172,10.0]
[1674244334272,0.96,23.195,23.173,20.0]
[1674244334481,10.96,23.195,23.174,10.0]
[1674244334670,10.96,23.195,23.175,20.0]
[1674244334884,17.0,23.194,23.176,10.0]
[1674244335211,0.96,23.193,23.177,20.0]
[1674244335424,32.34,23.195,23.177,20.0]
[1674244335635,10.0,23.196,23.178,10.0]
[1674244335823,32.34,23.197,23.178,10.0]
[1674244336037,116.7586,23.21,23.18,25.39]
[1674244336249,108.864,23.208,23.181,45.827]
[1674244336465,108.864,23.208,23.181,64.06274466]
[1674244336680,10.0,23.207,23.183,10.0]
[1674244337101,42.33,23.207,23.184,57.15574466]
[1674244337318,10.0,23.207,23.184,57.15574466]
[1674244337519,116.7586,23.21,23.19,25.39]
[1674244337726,10.0,23.209,23.191,20.0]
[1674244337940,116.7586,23.21,23.191,20.0]
[1674244338153,116.7586,23.21,23.192,37.15574466]
[1674244338487,32.31,23.22,23.193,19.19574466]
[1674244338687,115.4732,23.23,23.194,20.0]
[1674244338897,115.4732,23.23,23.194,30.0]
[1674244338898,10.0,23.22,23.194,30.0]
[1674244339109,10.0,23.22,23.195,36.19574466]
[1674244339423,10.0,23.22,23.196,19.19574466]
[1674244339616,10.0,23.22,23.197,17.96]
[1674244339824,10.0,23.226,23.2,25.39]
[1674244340048,114.2326,23.221,23.201,37.96]
[1674244340472,114.2326,23.221,23.201,39.19574466]
[1674244340696,114.2326,23.221,23.203,10.0]
[1674244340997,10.0,23.226,23.204,37.15574466]
[1674244341193,101.78,23.26,23.21,25.39]
[1674244341194,32.28,23.241,23.21,25.39]
[1674244341409,148.4588,23.242,23.211,32.94]
[1674244341615,148.4588,23.242,23.212,20.96]
[1674244341823,148.4588,23.242,23.22,25.39]
[1674244342038,10.0,23.252,23.222,10.0]
[1674244342368,32.26,23.251,23.223,40.15574466]
[1674244342552,32.26,23.251,23.224,17.0]
[1674244342762,10.0,23.25,23.225,30.96]
[1674244342974,10.0,23.25,23.226,17.0]
[1674244343300,10.0,23.25,23.227,20.0]
[1674244343500,10.0,23.25,23.23,25.15]
[1674244343717,10.0,23.25,23.24,25.39]
[1674244343929,32.25,23.264,23.241,20.0]
[1674244344256,118.144,23.275,23.242,17.96]
[1674244344257,10.0,23.263,23.242,17.96]
[1674244344576,10.0,23.263,23.243,20.0]
[1674244344774,10.0,23.263,23.243,19.19574466]
[1674244344986,10.0,23.263,23.244,20.0]
[1674244345189,42.25,23.264,23.244,10.0]
[1674244345407,42.25,23.264,23.245,39.19574466]
[1674244345408,10.0,23.264,23.245,39.19574466]
[1674244345719,32.25,23.263,23.245,20.0]
[1674244346043,32.25,23.263,23.245,39.19574466]
[1674244346240,10.0,23.262,23.245,20.0]
[1674244347497,17.96,23.261,23.245,20.0]
[1674244347707,10.0,23.26,23.245,20.0]
[1674244347931,17.0,23.259,23.245,20.0]
[1674244348140,10.96,23.258,23.245,20.0]
[1674244348670,10.0,23.258,23.245,20.0]
[1674244349084,10.0,23.258,23.241,10.0]
[1674244349294,10.0,23.258,23.242,20.0]
[1674244349506,0.96,23.257,23.242,20.0]
[1674244349710,0.96,23.257,23.24,20.0]
[1674244349945,0.96,23.257,23.239,19.19574466]
[1674244350139,10.0,23.258,23.241,29.19574466]
[1674244350349,10.0,23.26,23.243,10.0]
[1674244350562,1.0,23.248,23.244,17.96]
[1674244350780,1.0,23.248,23.245,20.0]
[1674244350993,1.0,23.248,23.247,10.0]
[1674244351310,10.0,23.26,23.248,10.0]
[1674244351528,10.0,23.26,23.249,37.0]
[1674244351713,10.0,23.26,23.249,20.0]
[1674244352564,10.0,23.26,23.25,19.19574466]
[1674244352782,10.0,23.26,23.246,20.0]
[1674244352972,10.0,23.26,23.247,19.19574466]
[1674244353183,10.0,23.26,23.248,20.0]
[1674244353708,10.0,23.26,23.249,10.0]
[1674244353917,10.0,23.266,23.249,10.0]
[1674244354141,10.0,23.266,23.25,37.15574466]
[1674244354358,32.23,23.273,23.25,62.54574466]
[1674244354562,10.0,23.273,23.252,10.0]
[1674244354766,10.0,23.273,23.249,10.0]
[1674244354978,32.24,23.271,23.249,10.0]
[1674244355502,10.0,23.271,23.25,19.19574466]
[1674244355711,42.24,23.27,23.25,19.19574466]
[1674244355919,10.0,23.27,23.25,19.19574466]
[1674244356260,10.0,23.27,23.251,10.0]
[1674244356776,42.24,23.27,23.251,29.19574466]
[1674244356981,42.24,23.27,23.251,19.19574466]
[1674244357197,17.96,23.269,23.243,10.0]
[1674244357391,42.24,23.268,23.243,10.0]
[1674244357601,17.96,23.267,23.243,10.0]
[1674244357832,10.0,23.265,23.244,20.0]
[1674244358026,17.96,23.264,23.244,20.0]
[1674244358231,10.0,23.263,23.244,20.0]
[1674244358441,1.0,23.249,23.244,20.0]
[1674244358759,1.0,23.249,23.241,20.0]
[1674244359182,1.0,23.249,23.239,20.0]
[1674244359617,1.0,23.249,23.239,39.19574466]
[1674244359826,1.0,23.249,23.239,37.69574466]
[1674244360247,1.0,23.249,23.24,10.0]
[1674244360459,1.0,23.249,23.24,27.0]
[1674244360651,1.0,23.249,23.24,46.19574466]
[1674244361299,1.0,23.249,23.242,10.0]
[1674244361707,1.0,23.249,23.243,20.0]
[1674244362230,1.0,23.249,23.244,38.39148932]
[1674244362442,1.0,23.249,23.244,19.19574466]
[1674244362658,1.0,23.249,23.245,20.0]
[1674244363072,1.0,23.249,23.245,39.19574466]
[1674244363608,1.0,23.249,23.245,19.19574466]
[1674244363801,1.0,23.249,23.233,10.0]
[1674244364014,1.0,23.249,23.238,19.19574466]
[1674244364222,1.0,23.249,23.233,10.0]
[1674244364449,1.0,23.249,23.236,19.19574466]
[1674244365079,1.0,23.249,23.237,57.5729445]
[1674244365271,1.0,23.249,23.238,17.96]
[1674244365503,1.0,23.244,23.239,10.0]
[1674244365820,1.0,23.244,23.241,10.0]
[1674244366130,1.0,23.249,23.238,17.96]
[1674244366131,1.0,23.249,23.242,19.19574466]
[1674244366346,1.0,23.249,23.242,38.39148932]
[1674244366531,1.0,23.249,23.23,35.34]
[1674244366747,0.96,23.248,23.233,19.19574466]
[1674244367162,1.0,23.249,23.233,19.19574466]
[1674244367377,1.0,23.249,23.234,10.0]
[1674244367815,10.0,23.255,23.236,10.0]
[1674244368026,121.112,23.265,23.24,25.34]
[1674244368218,121.112,23.265,23.241,17.96]
[1674244368431,121.112,23.265,23.242,10.0]
[1674244368642,121.112,23.265,23.243,37.96]
[1674244368850,121.112,23.265,23.243,67.5729445]
[1674244369067,153.352,23.265,23.24,25.34]
[1674244369289,32.25,23.261,23.241,17.0]
[1674244369500,10.96,23.26,23.241,17.0]
[1674244369912,10.96,23.26,23.237,19.19574466]
[1674244370122,49.25,23.259,23.231,47.5729445]
[1674244370343,10.0,23.257,23.231,66.76868916]
[1674244370553,50.22,23.256,23.231,66.76868916]
[1674244370769,10.0,23.255,23.231,19.19574466]
[1674244370980,0.96,23.254,23.231,19.19574466]
[1674244371292,0.96,23.254,23.232,20.0]
[1674244371293,10.0,23.253,23.232,20.0]
[1674244371613,10.0,23.253,23.233,29.19574466]
[1674244371819,10.0,23.253,23.234,20.0]
[1674244372023,10.0,23.266,23.24,25.19]
[1674244372243,10.0,23.266,23.241,20.0]
[1674244372454,10.0,23.266,23.242,27.96]
[1674244372768,10.0,23.266,23.243,20.0]
[1674244372974,10.0,23.266,23.244,27.96]
[1674244373187,10.0,23.265,23.25,25.39]
[1674244373372,10.0,23.266,23.252,10.0]
[1674244373592,10.0,23.266,23.253,37.0]
[1674244374745,10.0,23.266,23.25,44.58574466]
[1674244374746,10.0,23.266,23.25,25.39]
[1674244375065,10.0,23.266,23.246,47.5729445]
[1674244375391,10.0,23.266,23.247,17.0]
[1674244375579,10.0,23.266,23.244,10.96]
[1674244375580,10.0,23.266,23.245,17.0]
[1674244375920,10.0,23.269,23.246,30.15574466]
[1674244376133,10.0,23.27,23.247,17.0]
[1674244376441,10.0,23.27,23.248,10.96]
[1674244376756,10.0,23.27,23.25,25.39]
[1674244376974,10.0,23.27,23.251,30.96]
[1674244377160,10.0,23.27,23.251,47.96]
[1674244377365,10.0,23.27,23.251,37.96]
[1674244377582,10.0,23.27,15.343,0.87432764]
[1674244377583,55.99576951,23.269,23.24,25.19]
[1674244377793,32.24,23.269,23.242,19.19574466]
[1674244378028,10.0,23.27,23.243,10.0]
[1674244378029,10.0,23.268,23.243,10.0]
[1674244378214,10.0,23.268,23.243,134.06335939]
[1674244378541,10.0,23.268,23.244,66.76868916]
[1674244378762,10.0,23.268,23.245,10.0]
[1674244378964,10.0,23.268,23.246,0.96]
[1674244379179,0.96,23.267,23.246,20.15574466]
[1674244379364,10.0,23.268,23.247,19.19574466]
[1674244379810,0.96,23.267,23.248,20.0]
[1674244380004,53.2,23.267,23.236,26.58]
[1674244380219,10.0,23.266,23.239,38.39148932]
[1674244380428,52.24,23.265,23.239,19.19574466]
[1674244380754,27.96,23.264,23.239,19.19574466]
[1674244380947,32.25,23.263,23.239,19.19574466]
[1674244381157,10.0,23.261,23.239,19.19574466]
[1674244381366,32.25,23.26,23.239,19.19574466]
[1674244381595,10.96,23.259,23.239,19.19574466]
[1674244381816,10.96,23.259,23.232,10.0]
[1674244382018,121.1896,23.259,23.234,37.15574466]
[1674244382210,121.1896,23.259,23.235,10.0]
[1674244382417,120.2296,23.259,23.236,17.96]
[1674244382621,120.2296,23.259,23.236,19.19574466]
[1674244382831,0.96,23.258,23.236,19.19574466]
[1674244383069,0.96,23.258,23.232,10.0]
[1674244383070,17.96,23.258,23.232,10.0]
[1674244383265,42.26,23.257,23.232,10.0]
[1674244383467,17.0,23.256,23.231,10.0]
[1674244383675,10.0,23.254,23.231,10.0]
[1674244383901,49.26,23.253,23.231,10.0]
[1674244384098,0.96,23.252,23.231,29.19574466]
[1674244384309,145.2857,23.254,23.231,29.19574466]
[1674244384522,113.0257,23.254,23.231,29.19574466]
[1674244384955,113.0257,23.254,23.232,17.96]
[1674244385162,10.0,23.253,23.233,30.0]
[1674244385373,10.0,23.253,23.234,17.96]
[1674244385590,110.2296,23.259,23.235,48.65]
[1674244385906,110.2296,23.259,23.24,25.19]
[1674244386092,10.0,23.264,23.241,37.96]
[1674244386304,225.2673,23.265,23.242,10.0]
[1674244386519,225.2673,23.265,23.243,48.49]
[1674244386725,225.2673,23.265,23.244,20.0]
[1674244387056,113.0257,23.265,23.245,17.96]
[1674244387383,10.0,23.264,23.246,49.19574466]
[1674244387696,10.0,23.264,23.247,36.19574466]
[1674244387890,10.0,23.264,23.248,20.0]
[1674244388101,10.0,23.264,23.249,10.0]
[1674244388520,10.0,23.264,23.248,39.19574466]
[1674244389060,10.0,23.264,23.249,46.19574466]
[1674244389370,113.0257,23.265,23.249,46.19574466]
[1674244389785,113.0257,23.265,23.25,19.19574466]
[1674244389989,113.0257,23.265,23.251,10.0]
[1674244390405,113.0257,23.265,23.249,29.19574466]
[1674244390616,113.0257,23.265,23.248,20.0]
[1674244390831,113.0257,23.265,23.247,39.19574466]
[1674244391051,113.0257,23.265,23.248,10.0]
[1674244391259,113.0257,23.265,23.249,20.0]
[1674244391700,10.0,23.264,23.25,10.0]
[1674244391893,10.0,23.264,23.249,20.0]
[1674244392413,32.25,23.263,23.249,20.0]
[1674244392618,17.0,23.262,23.232,32.29]
[1674244392819,33.21,23.261,23.23,25.19]
[1674244393032,10.0,23.259,23.239,10.0]
[1674244393241,10.0,23.264,23.239,10.0]
[1674244393565,10.0,23.264,23.24,44.38574466]
[1674244393971,10.0,23.264,23.241,37.15574466]
[1674244394189,10.0,23.264,23.243,10.0]
[1674244394416,113.0257,23.265,23.244,37.96]
[1674244394611,113.0257,23.265,23.244,57.15574466]
[1674244394821,113.0257,23.265,23.245,19.19574466]
[1674244395140,113.0257,23.265,23.247,10.0]
[1674244395340,113.0257,23.265,23.248,17.96]
[1674244395555,113.0257,23.265,23.248,36.65574466]
[1674244395782,113.0257,23.265,23.249,39.19574466]
[1674244396099,113.0257,23.265,23.251,10.0]
[1674244396310,113.0257,23.265,23.252,37.0]
[1674244396629,113.0257,23.265,23.252,56.19574466]
[1674244396819,113.0257,23.265,23.253,19.19574466]
[1674244397033,112.2416,23.272,23.255,10.0]
[1674244397244,112.2416,23.272,23.256,37.0]
[1674244397447,32.22,23.28,23.256,56.19574466]
[1674244397658,112.5575,23.279,23.257,19.19574466]
[1674244397869,112.5575,23.279,23.258,37.96]
[1674244398089,32.22,23.284,23.26,25.14]
[1674244398284,131.5,23.296,23.261,37.96]
[1674244398285,154.7775,23.286,23.261,37.96]
[1674244398618,154.7775,23.286,23.261,57.15574466]
[1674244398817,154.7775,23.286,23.262,19.19574466]
[1674244399038,144.7775,23.286,23.263,17.0]
[1674244399235,144.7775,23.286,23.264,20.0]
[1674244399445,10.0,23.285,23.264,30.0]
[1674244400077,10.0,23.285,23.265,10.0]
[1674244400301,17.0,23.284,23.266,20.0]
[1674244400533,49.22,23.284,23.266,20.0]
[1674244401047,10.96,23.283,23.266,20.0]
[1674244401895,10.96,23.283,23.264,10.0]
[1674244402104,49.22,23.282,23.25,25.12]
[1674244402299,0.96,23.281,23.255,29.19574466]
[1674244402512,32.22,23.28,23.255,29.19574466]
[1674244402725,17.96,23.279,23.253,10.0]
[1674244402920,10.0,23.277,23.255,10.0]
[1674244403135,50.19,23.276,23.255,10.0]
[1674244403469,50.19,23.276,23.256,20.56742333]
[1674244403667,142.3466,23.276,23.255,10.0]
[1674244403878,110.1166,23.276,23.256,20.56742333]
[1674244404089,110.1166,23.276,23.257,10.0]
[1674244404295,109.1566,23.276,23.258,20.0]
[1674244404498,109.1566,23.276,23.26,25.19]
[1674244404714,109.1566,23.276,23.261,20.0]
[1674244404925,32.22,23.284,23.262,10.0]
[1674244404926,10.0,23.283,23.262,10.0]
[1674244405140,42.22,23.285,23.263,17.96]
[1674244405357,10.0,23.285,23.263,37.96]
[1674244405550,10.0,23.285,23.263,58.52742333]
[1674244405760,32.22,23.284,23.264,30.56742333]
[1674244406098,10.0,23.284,23.262,10.0]
[1674244406296,32.22,23.283,23.255,30.56742333]
[1674244406505,0.96,23.282,23.255,10.0]
[1674244406830,32.22,23.281,23.257,30.56742333]
[1674244407256,32.22,23.283,23.26,24.97]
[1674244407450,144.7775,23.286,23.26,24.97]
[1674244407660,144.7775,23.286,23.261,57.56742333]
[1674244407867,144.7775,23.286,23.27,25.19]
[1674244408192,32.18,23.308,23.271,100.76742333]
[1674244408407,141.7867,23.308,23.271,100.76742333]
[1674244408618,141.7867,23.308,23.28,24.97]
[1674244408807,141.7867,23.308,23.281,37.96]
[1674244409022,141.7867,23.308,23.29,25.19]
[1674244409239,141.7867,23.308,23.282,10.0]
[1674244409450,141.7867,23.308,23.283,20.0]
[1674244409667,155.25576951,23.307,23.282,10.0]
[1674244409882,155.25576951,23.307,23.27,25.19]
[1674244409883,32.19,23.306,23.27,25.19]
[1674244410074,187.44576951,23.306,23.272,20.96]
[1674244410279,34.20366,23.305,23.272,20.96]
[1674244410495,32.19,23.304,23.273,20.56742333]
[1674244410823,17.0,23.303,23.274,20.0]
[1674244411016,173.69,23.302,23.272,20.0]
[1674244411228,17.0,23.301,23.272,20.0]
[1674244411438,36.40366,23.3,23.28,24.97]
[1674244411654,4.20366,23.299,23.28,24.97]
[1674244411887,10.0,23.297,23.273,10.0]
[1674244412102,10.0,23.297,23.274,20.0]
[1674244412308,109.6111,23.298,23.275,38.52742333]
[1674244412529,109.6111,23.298,23.277,10.0]
[1674244412736,109.6111,23.298,23.278,37.0]
[1674244412949,10.0,23.297,23.279,10.0]
[1674244413151,42.2,23.297,23.278,20.0]
[1674244413363,173.7,23.297,23.274,20.0]
[1674244413571,0.96,23.296,23.266,20.0]
[1674244413777,32.2,23.295,23.267,20.56742333]
[1674244413988,32.2,23.295,23.268,30.0]
[1674244413989,0.96,23.294,23.268,30.0]
[1674244414214,0.96,23.294,23.27,25.16]
[1674244414412,109.6111,23.298,23.28,25.19]
[1674244414617,109.6111,23.298,23.281,17.0]
[1674244414837,109.6111,23.298,23.283,10.0]
[1674244415051,109.6111,23.298,23.284,17.96]
[1674244415266,109.6111,23.298,23.285,20.0]
[1674244415478,109.6111,23.298,23.286,17.0]
[1674244415792,109.6111,23.298,23.287,20.0]
[1674244416004,109.6111,23.298,23.287,40.56742333]
[1674244416192,109.6111,23.298,23.288,20.56742333]
[1674244416403,32.2,23.297,23.27,25.14]
[1674244416829,32.2,23.297,23.268,10.0]
[1674244416830,43.75576951,23.296,23.268,10.0]
[1674244417048,46.40366,23.295,23.27,20.56742333]
[1674244417367,20.0,23.294,23.265,10.0]
[1674244417687,209.62942951,23.293,23.265,20.56742333]
[1674244417883,14.20366,23.292,23.262,10.0]
[1674244418087,185.87366,23.291,23.262,10.0]
[1674244418292,4.20366,23.29,23.261,10.0]
[1674244418502,181.67,23.289,23.243,32.27]
[1674244418723,131.5,23.287,23.253,29.30359973]
[1674244418927,131.5,23.285,23.253,29.30359973]
[1674244419137,74.38366,23.284,23.253,29.30359973]
[1674244419349,10.0,23.283,23.253,29.30359973]
[1674244419554,50.18,23.282,23.253,29.30359973]
[1674244419789,10.0,23.281,23.253,29.30359973]
[1674244419991,32.22,23.28,23.253,29.30359973]
[1674244420207,113.1123,23.279,23.253,29.30359973]
[1674244420394,10.0,23.277,23.253,29.30359973]
[1674244420728,50.19,23.276,23.253,29.30359973]
[1674244420947,10.0,23.275,23.253,29.30359973]
[1674244421132,50.19,23.274,23.25,23.35]
[1674244421349,50.19,23.274,23.251,20.0]
[1674244421783,10.0,23.273,23.248,20.0]
[1674244421974,10.0,23.271,23.249,10.0]
[1674244422184,33.2,23.27,23.25,43.5]
[1674244422407,32.24,23.27,23.25,62.80359973]
[1674244422624,17.96,23.269,23.25,43.5]
[1674244422836,10.0,23.268,23.25,20.0]
[1674244423063,10.0,23.266,23.248,20.0]
[1674244423241,0.96,23.265,23.248,20.0]
[1674244423447,0.96,23.265,23.241,10.0]
[1674244423657,32.25,23.264,23.249,19.30359973]
[1674244423868,10.96,23.263,23.249,19.30359973]
[1674244424297,17.0,23.262,23.241,10.0]
[1674244424508,0.96,23.261,23.242,19.30359973]
[1674244424724,0.96,23.261,23.241,10.0]
[1674244424725,33.21,23.261,23.233,10.0]
[1674244424941,10.0,23.26,23.235,19.30359973]
[1674244425149,49.25,23.259,23.235,19.30359973]
[1674244425341,0.96,23.258,23.24,23.5]
[1674244425886,10.0,23.256,23.235,19.30359973]
[1674244426075,50.22,23.255,23.235,19.30359973]
[1674244426281,50.22,23.255,23.23,23.5]
[1674244426504,50.22,23.255,23.233,19.30359973]
[1674244426505,117.4043,23.254,23.233,19.30359973]
[1674244426840,10.0,23.252,23.23,23.5]
[1674244427057,17.96,23.251,23.23,42.80359973]
[1674244427275,50.22,23.251,23.232,20.0]
[1674244427680,33.22,23.251,23.233,10.0]
[1674244427891,0.96,23.251,23.234,20.0]
[1674244428107,0.96,23.251,23.235,10.0]
[1674244428312,0.96,23.251,23.236,20.0]
[1674244428854,17.96,23.251,23.236,20.0]
[1674244429173,10.0,23.25,23.232,20.0]
[1674244429377,0.96,23.249,23.232,20.0]
[1674244429990,17.96,23.249,23.232,20.0]
[1674244430214,10.0,23.248,23.226,10.0]
[1674244430427,17.96,23.247,23.227,19.30359973]
[1674244430640,10.0,23.246,23.228,10.0]
[1674244431048,114.1183,23.25,23.231,10.0]
[1674244431251,117.4043,23.254,23.24,23.5]
[1674244431784,10.0,23.253,23.233,10.0]
[1674244432004,32.26,23.252,23.234,20.0]
[1674244432209,42.26,23.253,23.235,10.0]
[1674244432421,42.26,23.253,23.22,33.27]
[1674244432422,10.0,23.252,23.22,33.27]
[1674244432635,10.0,23.25,23.22,33.27]
[1674244432958,10.0,23.248,23.22,33.27]
[1674244433155,32.27,23.247,23.22,33.27]
[1674244433363,32.27,23.247,23.23,23.41]
[1674244433364,145.4251,23.247,23.23,23.41]
[1674244433569,17.0,23.246,23.23,23.41]
[1674244433792,10.96,23.245,23.22,33.27]
[1674244433998,17.0,23.244,23.22,33.27]
[1674244434335,10.96,23.243,23.22,33.27]
[1674244434540,10.0,23.241,23.22,33.27]
[1674244434721,50.24,23.24,23.22,10.0]
[1674244435478,17.96,23.24,23.22,10.0]
[1674244435876,10.0,23.238,23.22,10.0]
[1674244436086,0.96,23.237,23.22,10.0]
[1674244436297,17.96,23.237,23.22,10.0]
[1674244436851,32.28,23.24,23.22,33.41]
[1674244437054,113.1551,23.247,23.23,23.28]
[1674244437455,113.1551,23.247,23.23,41.40023541]
[1674244437767,113.1551,23.247,23.221,46.93]
[1674244437768,10.0,23.246,23.221,20.0]
[1674244437997,46.47366,23.246,23.222,10.0]
[1674244438209,46.47366,23.246,23.223,20.0]
[1674244438405,46.47366,23.246,23.224,10.0]
[1674244438610,17.0,23.245,23.224,28.12023541]
[1674244438821,17.0,23.245,23.225,38.12023541]
[1674244439367,17.0,23.245,23.226,18.12023541]
[1674244439684,17.0,23.245,23.228,10.0]
[1674244440082,0.96,23.244,23.229,38.12023541]
[1674244440504,0.96,23.244,23.231,10.0]
[1674244440937,0.96,23.244,23.229,20.0]
[1674244440938,0.96,23.244,23.201,165.38425837]
[1674244441151,36.47366,23.243,23.218,10.0]
[1674244441352,0.96,23.242,23.22,23.5]
[1674244441553,10.0,23.24,23.21,23.5]
[1674244441769,56.48366,23.239,23.21,23.5]
[1674244442102,10.0,23.237,23.21,23.5]
[1674244442299,74.44366,23.236,23.201,10.0]
[1674244442516,10.0,23.234,23.201,10.0]
[1674244442835,321.48766,23.233,23.201,10.0]
[1674244443028,14.20366,23.232,23.201,10.0]
[1674244443364,14.20366,23.232,23.21,23.5]
[1674244443365,32.29,23.231,23.21,23.5]
[1674244443670,118.55096,23.232,23.21,23.5]
[1674244443671,114.3473,23.232,23.211,28.12023541]
[1674244443888,32.28,23.241,23.22,23.28]
[1674244444075,115.534,23.245,23.22,23.28]
[1674244444289,115.534,23.245,23.221,38.12023541]
[1674244444499,115.534,23.245,23.222,27.0]
[1674244444715,115.534,23.245,23.23,23.35]
[1674244444929,117.4043,23.254,23.23,23.35]